bitfinex/quotes_ETHUSD_20241009
["timestamp","ask_amount","ask_price","bid_price","bid_amount"]
[1728467867700,0.07734641,2439.4,2439.2,4.09969]
[1728467868192,4.85794,2439.6,2439.2,4.09969]
[1728467868380,0.07732324,2439.3,2439.2,4.89269]
[1728467868559,4.85794,2439.6,2439.2,4.89269]
[1728467868760,0.07732324,2439.3,2439.2,4.89269]
[1728467869314,4.85794,2439.6,2439.2,4.89269]
[1728467869524,0.07732324,2439.3,2439.1,4.09979]
[1728467869721,4.85794,2439.6,2439.1,4.09979]
[1728467869927,0.07732901,2439.2,2439.1,4.09979]
[1728467870084,4.85794,2439.6,2439.1,4.09979]
[1728467870287,0.07739851,2439.5,2439.1,4.09979]
[1728467871516,4.17660851,2439.5,2439.1,4.09979]
[1728467876592,0.07739851,2439.5,2439.0,4.85935]
[1728467876792,0.07739851,2439.5,2439.2,4.0997]
[1728467878523,0.07739851,2439.5,2439.2,4.09969]
[1728467883496,0.07739851,2439.5,2439.3,4.93201]
[1728467883697,4.87017,2439.8,2439.4,4.09936]
[1728467883897,0.07745049,2439.7,2439.4,4.09936]
[1728467884100,4.87017,2439.8,2439.4,4.09936]
[1728467884298,0.07745049,2439.7,2439.4,4.09936]
[1728467884547,4.87017,2439.8,2439.4,4.09936]
[1728467884729,0.07742733,2439.6,2439.4,4.09936]
[1728467884903,4.87017,2439.8,2439.4,4.09936]
[1728467885119,0.07740417,2439.5,2439.4,4.09936]
[1728467885305,4.87017,2439.8,2439.4,4.09936]
[1728467885541,0.07740417,2439.5,2439.4,4.09936]
[1728467885742,4.87017,2439.8,2439.3,4.93201]
[1728467885743,4.87017,2439.8,2439.3,9.03143]
[1728467886038,0.07740417,2439.5,2439.3,9.03143]
[1728467886405,4.87017,2439.8,2439.3,9.03143]
[1728467886604,0.07739801,2439.4,2439.3,9.03143]
[1728467886799,8.96895,2439.8,2439.3,9.03143]
[1728467887031,0.07739801,2439.4,2439.3,4.93192]
[1728467887235,8.96895,2439.8,2439.3,4.93192]
[1728467887449,0.07739801,2439.4,2439.3,4.93192]
[1728467887606,8.96897,2439.8,2439.3,4.93192]
[1728467887802,0.07739801,2439.4,2439.3,4.93192]
[1728467888016,8.96897,2439.8,2439.3,4.93192]
[1728467888219,0.07739801,2439.4,2439.3,4.93192]
[1728467888416,8.96897,2439.8,2439.3,4.93192]
[1728467888615,0.07739801,2439.4,2439.3,4.93192]
[1728467889100,8.96897,2439.8,2439.3,4.93192]
[1728467889306,0.07739801,2439.4,2439.3,4.93192]
[1728467889542,8.96897,2439.8,2439.3,4.93192]
[1728467889842,0.07736907,2439.4,2439.3,4.93192]
[1728467890005,4.09886,2439.7,2439.3,4.93192]
[1728467890648,0.0774154,2439.6,2439.3,4.93192]
[1728467900847,0.0774154,2439.6,2439.4,0.7936]
[1728467903450,4.1764554,2439.6,2439.4,0.7936]
[1728467903958,4.0992,2439.5,2439.1,4.09985]
[1728467904114,0.07742684,2439.5,2439.2,0.8322]
[1728467904820,0.07742684,2439.5,2439.2,4.93183]
[1728467909941,0.07742684,2439.5,2439.2,9.03146]
[1728467910451,0.07742684,2439.5,2439.3,4.09951]
[1728467910855,4.86789,2439.7,2439.3,4.09951]
[1728467911067,0.07740368,2439.4,2439.3,4.09951]
[1728467911255,4.86789,2439.7,2439.3,4.09951]
[1728467911465,0.07740368,2439.4,2439.3,4.09951]
[1728467911943,4.86789,2439.7,2439.3,4.09951]
[1728467912146,0.07740368,2439.4,2439.3,4.09951]
[1728467912346,4.86789,2439.7,2439.3,4.09951]
[1728467912651,0.07739234,2439.4,2439.2,4.93183]
[1728467912975,0.07736918,2439.3,2439.2,9.03142]
[1728467913200,4.86789,2439.7,2439.2,9.03142]
[1728467913201,4.86789,2439.7,2439.2,4.93179]
[1728467913358,0.07736918,2439.3,2439.2,4.93179]
[1728467913562,4.09905,2439.6,2439.2,4.93179]
[1728467913778,0.07736918,2439.3,2439.2,4.93179]
[1728467914077,4.09905,2439.6,2439.2,4.93179]
[1728467914240,0.07736918,2439.3,2439.2,4.93179]
[1728467914439,4.09905,2439.6,2439.2,4.93179]
[1728467914649,0.07736918,2439.3,2439.2,4.93179]
[1728467915141,4.09905,2439.6,2439.2,4.93179]
[1728467915459,0.07736918,2439.3,2439.2,4.93179]
[1728467915650,4.09905,2439.6,2439.2,4.93179]
[1728467915841,0.07736918,2439.3,2439.2,4.93179]
[1728467916068,4.09905,2439.6,2439.2,4.93179]
[1728467916268,0.07736918,2439.3,2439.2,4.93179]
[1728467916739,4.09905,2439.6,2439.2,4.93179]
[1728467916943,0.07736918,2439.3,2439.2,4.93179]
[1728467917260,4.86789,2439.7,2439.2,6.0094008]
[1728467917457,0.07736918,2439.3,2439.2,4.93179]
[1728467917641,4.86789,2439.7,2439.2,4.93179]
[1728467917840,0.07736918,2439.3,2439.2,4.93179]
[1728467918053,4.86789,2439.7,2439.2,4.93179]
[1728467918254,0.07736918,2439.3,2439.2,4.93179]
[1728467918454,4.86789,2439.7,2439.2,6.0094008]
[1728467918671,0.07736918,2439.3,2439.2,4.93179]
[1728467918875,4.86789,2439.7,2439.2,4.93179]
[1728467919075,0.07736918,2439.3,2439.2,4.93179]
[1728467919381,4.86789,2439.7,2439.3,4.09952]
[1728467930779,0.07743867,2439.6,2439.3,4.09952]
[1728467931090,4.09927,2439.5,2439.0,4.88172]
[1728467931386,4.09927,2439.5,2439.1,4.09984]
[1728467931582,0.07739518,2439.4,2439.1,4.09984]
[1728467947022,0.07739518,2439.4,2439.1,8.19962]
[1728467947696,0.07739518,2439.4,2439.1,4.09978]
[1728467953732,0.07739518,2439.4,2439.0,4.8818]
[1728467954113,0.07739518,2439.4,2439.0,0.7818]
[1728467954361,0.07739518,2439.4,2439.1,4.09987]
[1728467958114,0.07739518,2439.4,2439.0,0.7818]
[1728467958314,0.07739518,2439.4,2439.0,4.8818]
[1728467958730,0.07739518,2439.4,2439.1,4.09984]
[1728467960541,4.17678518,2439.4,2439.0,4.88175]
[1728467961538,0.07739518,2439.4,2439.1,4.09986]
[1728467962841,0.07739518,2439.4,2439.0,4.88176]
[1728467963043,0.07739518,2439.4,2439.0,8.98172]
[1728467963436,4.17677518,2439.4,2439.0,4.88176]
[1728467964010,4.17677518,2439.4,2439.0,8.98172]
[1728467964343,0.07739518,2439.4,2439.0,8.98172]
[1728467965424,0.07739518,2439.4,2439.0,4.88176]
[1728467965610,0.07739518,2439.4,2439.1,4.09986]
[1728467971522,0.07739518,2439.4,2439.0,4.1]
[1728467971845,4.17676518,2439.4,2439.0,4.1]
[1728467972075,4.17676518,2439.4,2438.9,4.10019]
[1728467972225,4.17676518,2439.4,2438.8,4.91324]
[1728467972226,4.0997,2439.2,2438.8,4.10034]
[1728467972613,0.07664884,2439.1,2438.8,4.10034]
[1728467972837,0.8083,2439.0,2438.7,4.10052]
[1728467973012,0.07662802,2438.9,2438.7,8.20095]
[1728467973890,0.07662802,2438.9,2438.6,4.89877]
[1728467976015,0.07662802,2438.9,2438.7,4.10053]
[1728467977024,0.07662802,2438.9,2438.8,4.10037]
[1728467977216,0.07662802,2438.9,2438.8,7.79637416]
[1728467977464,0.07662802,2438.9,2438.8,7.79636842]
[1728467977616,4.8508,2439.4,2439.0,4.09996]
[1728467977810,4.8508,2439.4,2439.0,8.19992]
[1728467978102,4.8508,2439.4,2439.0,4.09996]
[1728467978213,4.8508,2439.4,2439.0,8.19988]
[1728467978414,4.8508,2439.4,2439.0,4.09992]
[1728467979058,0.7514,2439.4,2439.0,8.19985]
[1728467979553,0.7514,2439.4,2439.0,4.09992]
[1728467979554,4.85078,2439.4,2439.0,4.09992]
[1728467982385,0.7514,2439.4,2439.0,8.19989]
[1728467985085,4.85077,2439.4,2439.0,4.09992]
[1728467987679,4.09926,2439.5,2439.1,0.8089]
[1728467987884,4.09926,2439.5,2439.1,4.90875]
[1728467990987,0.07392398,2439.4,2439.1,4.90875]
[1728467994193,0.07392398,2439.4,2439.3,0.7987]
[1728467994396,0.07392398,2439.4,2439.3,4.89823]
[1728467994565,4.09893,2439.7,2439.3,4.89823]
[1728467994756,0.07139451,2439.4,2439.3,4.89823]
[1728467994957,4.09893,2439.7,2439.3,4.89823]
[1728467995165,0.07140305,2439.4,2439.3,4.89823]
[1728467995371,4.09893,2439.7,2439.3,4.89823]
[1728467995558,0.07140305,2439.4,2439.3,4.89823]
[1728467995758,4.09893,2439.7,2439.3,4.89823]
[1728467995958,0.07140305,2439.4,2439.3,4.89823]
[1728467996257,0.07140305,2439.4,2439.3,6.05443875]
[1728467996580,4.09871,2439.8,2439.3,5.9724558]
[1728467996818,0.07145708,2439.4,2439.3,4.89823]
[1728467997047,4.09871,2439.8,2439.3,4.89823]
[1728467997473,0.07152656,2439.7,2439.3,4.89823]
[1728467997673,4.09871,2439.8,2439.3,4.89823]
[1728467997931,0.07152656,2439.7,2439.4,4.09934]
[1728467998118,4.09871,2439.8,2439.4,4.09934]
[1728467998276,0.07154079,2439.7,2439.4,4.09934]
[1728467998476,4.09871,2439.8,2439.4,4.09934]
[1728467998675,0.07154079,2439.7,2439.4,4.09934]
[1728467998896,4.09871,2439.8,2439.4,4.09934]
[1728467999115,0.07153768,2439.7,2439.4,4.09934]
[1728467999321,4.09871,2439.8,2439.3,4.89823]
[1728467999608,0.07151452,2439.6,2439.3,8.99768]
[1728467999812,0.07153768,2439.7,2439.3,8.99768]
[1728468000016,0.07149136,2439.5,2439.3,4.89815]
[1728468000202,4.09871,2439.8,2439.3,5.9723838]
[1728468000406,4.09871,2439.8,2439.3,4.89815]
[1728468000578,4.87794,2439.9,2439.3,4.89815]
[1728468000922,4.09877,2439.8,2439.3,4.89813]
[1728468001288,4.09894,2439.7,2439.3,4.89813]
[1728468001621,4.09913,2439.6,2439.3,0.7987]
[1728468001819,4.91123,2439.6,2439.2,4.09968]
[1728468002386,4.09927,2439.5,2439.1,0.8259]
[1728468003377,4.09927,2439.5,2439.1,4.92568]
[1728468009092,4.09927,2439.5,2439.1,0.8259]
[1728468009334,9.01033,2439.6,2439.1,4.92576]
[1728468009700,4.09923,2439.5,2439.1,4.92576]
[1728468011939,4.09937,2439.4,2439.1,0.8259]
[1728468012175,4.09937,2439.4,2438.9,6.62144801]
[1728468012176,4.09954,2439.3,2438.9,6.62144801]
[1728468013952,4.09954,2439.3,2438.9,4.87699]
[1728468014624,4.09954,2439.3,2438.9,0.7768]
[1728468014942,4.09984,2439.2,2438.9,0.7768]
[1728468015117,4.09988,2439.1,2438.7,7.92781]
[1728468015692,4.09988,2439.1,2438.5,4.10086]
[1728468015693,4.10029,2438.9,2438.5,4.10086]
[1728468015851,4.10038,2438.8,2438.5,0.8273]
[1728468016017,4.10016,2439.0,2438.5,0.8273]
[1728468016344,4.1007,2438.7,2438.3,0.7911]
[1728468016650,4.91679,2438.8,2438.3,4.89218]
[1728468017019,4.10034,2438.9,2438.5,4.10085]
[1728468017220,4.10034,2438.9,2438.5,0.7911]
[1728468017221,8.20065,2438.9,2438.5,0.7911]
[1728468017420,8.20063,2438.9,2438.5,0.7911]
[1728468017621,4.10031,2438.9,2438.5,0.7911]
[1728468017932,0.07131786,2438.8,2438.5,0.7911]
[1728468018127,4.17176786,2438.8,2438.5,0.7911]
[1728468018335,0.07131786,2438.8,2438.5,0.7911]
[1728468019140,0.07131786,2438.8,2438.5,4.89194]
[1728468019758,0.07131786,2438.8,2438.5,0.7911]
[1728468021082,0.07131786,2438.8,2438.5,4.89193]
[1728468023319,0.07051786,2438.8,2438.5,4.89193]
[1728468029598,0.07051786,2438.8,2438.6,4.10062]
[1728468029893,4.74260931,2439.1,2438.7,4.10053]
[1728468030998,0.07093914,2439.0,2438.7,4.10053]
[1728468031159,0.07093914,2439.0,2438.8,0.87970334]
[1728468031355,0.07093914,2439.0,2438.9,5.84465801]
[1728468031661,0.07093914,2439.0,2438.9,5.92665121]
[1728468031971,7.48,2439.3,2439.0,4.09992]
[1728468032177,0.8091,2439.4,2439.0,4.09992]
[1728468032380,4.90849,2439.4,2438.9,9.94474801]
[1728468032688,4.90849,2439.4,2438.9,9.94463801]
[1728468032869,4.90849,2439.4,2439.0,4.10002]
[1728468033420,4.90849,2439.4,2439.0,4.18201265]
[1728468033767,4.90849,2439.4,2439.1,0.7977]
[1728468034605,4.09922,2439.5,2439.1,0.7977]
[1728468037800,4.90817,2439.6,2439.2,4.09969]
[1728468037801,4.09907,2439.6,2439.2,4.09969]
[1728468038003,4.09907,2439.6,2439.3,0.672384]
[1728468038204,4.09907,2439.6,2439.2,4.09969]
[1728468039105,4.09888,2439.7,2439.2,8.19926]
[1728468039615,4.09888,2439.7,2439.4,0.817]
[1728468042510,4.09904,2439.6,2439.2,4.09957]
[1728468042673,4.09904,2439.6,2439.3,0.5844028]
[1728468042867,0.06393232,2439.5,2439.3,0.5844028]
[1728468043612,4.09888,2439.7,2439.3,0.5844028]
[1728468043786,0.06390916,2439.4,2439.3,0.5844028]
[1728468044103,4.09888,2439.7,2439.3,0.5844028]
[1728468044307,0.06390916,2439.4,2439.3,0.5844028]
[1728468044466,4.09888,2439.7,2439.3,0.5844028]
[1728468044674,4.09888,2439.7,2439.4,0.95990828]
[1728468049777,8.19785,2439.7,2439.4,0.95990828]
[1728468051150,4.09888,2439.7,2439.4,0.95990828]
[1728468051277,8.19285,2439.7,2439.4,0.95990828]
[1728468051940,8.19283,2439.7,2439.4,0.95990828]
[1728468052279,8.19287,2439.7,2439.5,0.50594383]
[1728468053006,4.09903,2439.6,2439.5,0.50594383]
[1728468053212,4.09903,2439.6,2439.2,4.91518]
[1728468055415,0.7629,2439.5,2439.2,0.8155]
[1728468055991,0.7629,2439.5,2439.2,4.91518]
[1728468057018,0.7629,2439.5,2439.2,0.8155]
[1728468057789,0.06395213,2439.4,2439.2,0.8155]
[1728468057985,0.06395213,2439.4,2439.2,5.816691]
[1728468058401,0.06395213,2439.4,2439.2,1.717011]
[1728468058619,0.06395213,2439.4,2439.0,4.9106]
[1728468058892,4.09955,2439.3,2438.9,1.0742338]
[1728468059193,4.16347896,2439.3,2438.9,1.0742338]
[1728468059818,4.16347896,2439.3,2438.9,5.1744338]
[1728468060232,4.16347896,2439.3,2438.7,4.10044]
[1728468060233,0.8257,2439.2,2438.7,4.10044]
[1728468060524,4.9894674,2439.2,2438.7,4.10044]
[1728468060899,4.9894674,2439.2,2438.7,8.20091]
[1728468061534,0.8896774,2439.2,2438.8,4.10027]
[1728468061731,4.9893974,2439.2,2438.8,5.000711]
[1728468061934,4.9893974,2439.2,2438.8,4.10027]
[1728468063497,0.8896774,2439.2,2438.8,4.10027]
[1728468063755,0.8896774,2439.2,2438.8,4.182269]
[1728468065411,4.9894174,2439.2,2438.8,4.182269]
[1728468065610,4.9894174,2439.2,2438.8,4.10027]
[1728468066439,0.8896774,2439.2,2438.6,4.90431]
[1728468066598,4.9893874,2439.2,2438.8,4.10037]
[1728468068834,4.9893874,2439.2,2438.6,4.90427]
[1728468068835,4.10011,2439.0,2438.6,4.90427]
[1728468069015,0.06386205,2438.9,2438.6,4.90427]
[1728468070703,4.16408205,2438.9,2438.5,3.0]
[1728468070900,4.91778205,2438.9,2438.5,3.0]
[1728468071098,4.91778205,2438.9,2438.4,9.00015]
[1728468071304,4.91778205,2438.9,2438.4,9.00011]
[1728468071811,4.91778205,2438.9,2438.4,4.8992]
[1728468072001,4.91778205,2438.9,2438.4,9.00017]
[1728468072417,4.91778205,2438.9,2438.5,4.10086]
[1728468073434,0.81756205,2438.9,2438.6,4.10064]
[1728468073636,0.06386205,2438.9,2438.6,4.10064]
[1728468073939,4.10004,2439.0,2438.6,4.10064]
[1728468074183,0.06370141,2438.8,2438.6,4.10064]
[1728468074303,4.10004,2439.0,2438.6,4.10064]
[1728468074502,0.06367823,2438.7,2438.6,4.10064]
[1728468074738,4.10004,2439.0,2438.6,4.10064]
[1728468074941,0.06367823,2438.7,2438.6,4.10064]
[1728468075141,4.10004,2439.0,2438.6,4.10064]
[1728468075346,0.06367823,2438.7,2438.6,4.10064]
[1728468075508,4.10004,2439.0,2438.6,4.10064]
[1728468075711,0.06367823,2438.7,2438.6,4.10064]
[1728468076240,0.812,2439.1,2438.6,1.0744258]
[1728468076403,4.09962,2439.3,2438.9,4.10016]
[1728468077444,4.09962,2439.3,2438.8,4.10028]
[1728468077805,4.09962,2439.3,2438.8,8.20058]
[1728468078502,4.09962,2439.3,2438.8,4.10028]
[1728468078702,4.09962,2439.3,2438.8,8.20055]
[1728468078904,4.09962,2439.3,2438.9,4.10019]
[1728468079136,4.09962,2439.3,2438.8,8.20054]
[1728468079338,4.09962,2439.3,2438.9,4.10018]
[1728468081262,0.7633,2439.4,2438.9,8.20031]
[1728468081434,4.86269,2439.4,2438.9,4.10013]
[1728468081628,4.09953,2439.3,2438.9,4.10013]
[1728468082057,0.7633,2439.4,2439.0,4.88658]
[1728468082222,4.09929,2439.5,2439.1,4.09987]
[1728468084416,1.02794876,2439.6,2439.1,4.09987]
[1728468084620,0.20274876,2439.6,2439.3,4.09949]
[1728468087957,0.06398389,2439.5,2439.3,4.09949]
[1728468091242,0.06398389,2439.5,2439.3,4.09949]
[1728468095279,0.06398389,2439.5,2439.2,4.90237]
[1728468095945,8.19793,2439.7,2439.2,4.90237]
[1728468095946,4.09893,2439.7,2439.2,4.90237]
[1728468096187,0.06222917,2439.4,2439.2,4.90237]
[1728468096384,4.09906,2439.6,2439.2,4.90237]
[1728468096883,0.0619311,2439.5,2439.2,4.90237]
[1728468097089,0.0619311,2439.5,2439.2,9.00198]
[1728468097451,0.0619311,2439.5,2439.2,4.90231]
[1728468097651,0.0619311,2439.5,2439.2,9.00191]
[1728468099485,0.0619311,2439.5,2439.2,9.00188]
[1728468100085,4.09894,2439.7,2439.2,9.00188]
[1728468100287,0.06195426,2439.6,2439.2,9.00188]
[1728468102399,4.16098426,2439.6,2439.2,4.90228]
[1728468103360,4.16098426,2439.6,2439.2,9.0019]
[1728468103705,4.16098426,2439.6,2439.2,4.90228]
[1728468104665,4.16098426,2439.6,2439.2,9.0019]
[1728468104863,4.16098426,2439.6,2439.2,4.90228]
[1728468105790,4.16098426,2439.6,2439.2,9.00191]
[1728468106191,4.16098426,2439.6,2439.2,4.90228]
[1728468106382,4.16098426,2439.6,2439.2,9.00191]
[1728468108295,4.16098426,2439.6,2439.2,4.90228]
[1728468108967,4.16098426,2439.6,2439.2,9.0019]
[1728468111278,4.16098426,2439.6,2439.2,9.00189]
[1728468113067,0.06195426,2439.6,2439.2,9.00189]
[1728468113294,0.06195426,2439.6,2439.2,10.0765248]
[1728468116108,0.06195426,2439.6,2439.2,5.9769148]
[1728468116309,0.06195426,2439.6,2439.2,10.0765248]
[1728468116902,0.06195426,2439.6,2439.3,4.09951]
[1728468117287,4.8577,2439.8,2439.4,4.09934]
[1728468117719,0.06198315,2439.7,2439.2,1.8773348]
[1728468118028,4.16087315,2439.7,2439.3,4.09949]
[1728468121733,0.06198315,2439.7,2439.3,1.00765748]
[1728468121916,0.759,2439.8,2439.5,4.09909]
[1728468122230,0.0620483,2439.7,2439.5,4.09909]
[1728468122730,4.0986,2439.9,2439.5,4.09909]
[1728468123023,8.19721,2439.9,2439.5,4.09909]
[1728468123225,4.16078719,2439.8,2439.4,4.09936]
[1728468123534,4.09927,2439.5,2439.1,4.09974]
[1728468123828,0.0619676,2439.4,2439.1,4.09974]
[1728468124014,0.0619676,2439.4,2439.1,4.997355]
[1728468124215,4.9786176,2439.4,2439.0,0.7763]
[1728468124400,4.09954,2439.3,2438.9,4.10011]
[1728468124819,0.06192297,2439.2,2438.8,4.86735]
[1728468125226,0.06192297,2439.2,2438.7,7.10043]
[1728468125227,0.8172,2439.1,2438.7,4.10052]
[1728468125432,0.87911111,2439.1,2438.7,4.10052]
[1728468125629,0.87911111,2439.1,2438.7,4.997348]
[1728468125809,0.8172,2439.1,2438.7,4.997348]
[1728468126901,4.91709,2439.1,2438.7,4.997288]
[1728468127108,4.91709,2439.1,2438.7,4.10046]
[1728468127302,0.8172,2439.1,2438.7,8.20089]
[1728468127544,0.06169433,2439.0,2438.7,4.10043]
[1728468129308,0.06169433,2439.0,2438.7,8.20089]
[1728468130243,0.06169433,2439.0,2438.7,4.10043]
[1728468130441,0.06169433,2439.0,2438.7,8.20089]
[1728468130608,0.8172,2439.1,2438.7,8.20089]
[1728468130946,0.06172395,2438.9,2438.7,8.20089]
[1728468131130,0.06172395,2438.9,2438.7,9.11795379]
[1728468131302,0.06170078,2438.8,2438.7,5.01749379]
[1728468131710,0.8172,2439.1,2438.7,5.01749379]
[1728468132031,0.8172,2439.1,2438.7,4.10043]
[1728468132250,0.06174712,2439.0,2438.7,4.10043]
[1728468132763,0.06174712,2439.0,2438.8,4.10035]
[1728468133066,0.06174712,2439.0,2438.7,4.10043]
[1728468133270,0.06174712,2439.0,2438.7,8.2009]
[1728468133438,0.06174712,2439.0,2438.7,4.10043]
[1728468133622,0.06174712,2439.0,2438.8,4.10036]
[1728468134463,0.06174712,2439.0,2438.6,4.10064]
[1728468134668,0.06174712,2439.0,2438.6,8.88275459]
[1728468135363,0.06174712,2439.0,2438.7,4.10042]
[1728468137742,0.06174712,2439.0,2438.8,4.10034]
[1728468138070,0.06174712,2439.0,2438.7,4.10042]
[1728468138967,0.06174712,2439.0,2438.7,8.20089]
[1728468139168,0.06174712,2439.0,2438.6,0.68148459]
[1728468139343,0.06174712,2439.0,2438.5,0.767]
[1728468141146,4.16178712,2439.0,2438.5,0.767]
[1728468141467,4.10038,2438.8,2438.3,0.8288]
[1728468141672,0.833,2438.9,2438.3,0.8288]
[1728468141869,0.06157716,2438.7,2438.3,0.8288]
[1728468142079,4.1004,2438.8,2438.3,0.8288]
[1728468142437,0.86486059,2438.7,2438.3,0.8288]
[1728468143577,0.86486059,2438.7,2438.3,0.91081582]
[1728468145059,0.06156059,2438.7,2438.3,6.75643383]
[1728468145379,0.06156733,2438.6,2438.4,1.4064592]
[1728468145682,4.88386,2438.9,2438.4,1.4064592]
[1728468145852,0.06148498,2438.5,2438.4,1.4064592]
[1728468146061,4.88386,2438.9,2438.4,1.4064592]
[1728468146250,0.06148498,2438.5,2438.4,1.4064592]
[1728468146676,4.88386,2438.9,2438.4,1.4064592]
[1728468146871,0.06149063,2438.5,2438.4,1.4064592]
[1728468147178,4.88386,2438.9,2438.4,1.4064592]
[1728468147385,0.06149629,2438.5,2438.3,0.8288]
[1728468147590,4.10062,2438.7,2438.3,0.8288]
[1728468147793,0.06147311,2438.4,2438.3,0.8288]
[1728468149098,4.10088,2438.5,2438.1,0.7653]
[1728468149454,0.06126608,2438.4,2438.1,0.7653]
[1728468149656,0.06126608,2438.4,2438.1,1.14183]
[1728468150297,8.20191,2438.5,2438.1,1.14183]
[1728468150453,0.06118856,2438.3,2438.1,1.14183]
[1728468150891,4.10088,2438.5,2438.1,1.14183]
[1728468151388,0.06122306,2438.4,2438.1,1.14183]
[1728468152999,4.1018,2438.0,2437.8,0.7845]
[1728468153355,0.06106994,2437.9,2437.6,0.7944]
[1728468153998,0.06106994,2437.9,2437.6,2.53885801]
[1728468154155,4.1014,2438.2,2437.6,6.64113801]
[1728468154353,0.06106438,2438.1,2437.7,1.0743598]
[1728468156098,4.16266438,2438.1,2437.7,1.0743598]
[1728468159559,4.10173,2438.0,2437.7,1.0743598]
[1728468159875,0.06085147,2437.9,2437.6,2.53885801]
[1728468160066,4.16282147,2437.9,2437.6,0.7944]
[1728468161083,4.16274147,2437.9,2437.6,1.74445801]
[1728468161707,4.16274147,2437.9,2437.4,4.85631]
[1728468161708,4.16274147,2437.9,2437.4,6.60076801]
[1728468161866,4.16274147,2437.9,2437.5,0.9600768]
[1728468162573,4.1616709,2437.9,2437.5,0.9600768]
[1728468164164,8.2636509,2437.9,2437.5,0.9600768]
[1728468164499,4.1616709,2437.9,2437.5,0.9600768]
[1728468169496,0.0597809,2437.9,2437.5,5.0626268]
[1728468169823,0.0597809,2437.9,2437.6,1.16633348]
[1728468179919,0.0597809,2437.9,2437.4,5.84708801]
[1728468179920,0.7541,2437.8,2437.4,5.84708801]
[1728468180238,0.81480622,2437.8,2437.4,5.84708801]
[1728468181166,0.81480622,2437.8,2437.4,4.10263]
[1728468182829,0.81480622,2437.8,2437.5,4.10254]
[1728468184882,0.81480622,2437.8,2437.6,4.10238]
[1728468185071,0.81480622,2437.8,2437.7,0.57430354]
[1728468187460,0.81480622,2437.8,2437.4,9.94987801]
[1728468187461,0.81480622,2437.8,2437.5,4.10253]
[1728468193201,0.81480622,2437.8,2437.4,4.10271]
[1728468194690,4.91694622,2437.8,2437.3,7.10289]
[1728468195007,4.86082,2437.7,2437.2,3.21036003]
[1728468195205,4.86082,2437.7,2437.2,8.29814883]
[1728468195409,0.0606881,2437.6,2437.2,8.29814883]
[1728468197903,4.86082,2437.7,2437.2,8.29814883]
[1728468198102,4.86082,2437.7,2437.2,7.31332003]
[1728468198444,4.86082,2437.7,2437.3,4.10289]
[1728468198841,0.06068233,2437.6,2437.3,4.10289]
[1728468199046,0.06068233,2437.6,2437.4,4.10272]
[1728468200257,0.06068233,2437.6,2437.3,4.88381]
[1728468200552,0.06068233,2437.6,2437.4,5.0865908]
[1728468200740,0.06068233,2437.6,2437.4,0.9838708]
[1728468206061,0.06068233,2437.6,2437.4,5.0865908]
[1728468206435,0.06068233,2437.6,2437.4,0.9838708]
[1728468209059,0.06068233,2437.6,2437.4,5.0865408]
[1728468210771,0.7585,2437.7,2437.4,5.0865408]
[1728468211253,0.06071078,2437.6,2437.4,5.0865408]
[1728468213470,0.06071078,2437.6,2437.4,0.9838708]
[1728468213630,0.06071078,2437.6,2437.3,7.88386]
[1728468214370,0.06071078,2437.6,2437.3,7.10286]
[1728468216330,0.06071078,2437.6,2437.4,4.10272]
[1728468216864,0.06071078,2437.6,2437.3,7.10286]
[1728468217742,0.06071078,2437.6,2437.3,11.20564]
[1728468217942,0.06071078,2437.6,2437.3,12.6024158]
[1728468220332,0.06071078,2437.6,2437.3,8.4995558]
[1728468221368,0.06071078,2437.6,2437.3,12.6023758]
[1728468221877,0.06071078,2437.6,2437.4,4.1027]
[1728468223467,0.06071078,2437.6,2437.4,4.10273]
[1728468223683,0.06071078,2437.6,2437.4,5.55844038]
[1728468225330,0.06071078,2437.6,2437.5,4.10256]
[1728468225566,0.8005,2437.9,2437.5,4.10256]
[1728468225765,0.06016519,2437.8,2437.5,4.10256]
[1728468230968,4.8784,2437.7,2437.3,7.10286]
[1728468231173,0.06010183,2437.6,2437.3,7.10286]
[1728468233390,0.06010183,2437.6,2437.5,0.20573553]
[1728468238797,0.06010183,2437.6,2437.3,7.10286]
[1728468239000,0.06010183,2437.6,2437.3,8.304179]
[1728468239859,0.06010183,2437.6,2437.3,8.304149]
[1728468240304,0.06010183,2437.6,2437.4,4.10265]
[1728468240966,0.06010183,2437.6,2437.5,4.90576]
[1728468241165,8.20362,2438.0,2437.5,4.98780203]
[1728468241361,0.06020968,2437.9,2437.5,6.49142493]
[1728468242191,4.16210968,2437.9,2437.5,6.49142493]
[1728468242395,4.16210968,2437.9,2437.5,6.4093829]
[1728468243813,0.06020968,2437.9,2437.6,4.10237]
[1728468244104,5.14210559,2438.1,2437.6,4.18440935]
[1728468244307,0.06029677,2438.0,2437.6,4.18440935]
[1728468244491,0.06029677,2438.0,2437.6,5.43892416]
[1728468246403,4.16209677,2438.0,2437.6,1.33655416]
[1728468246716,4.16209677,2438.0,2437.5,2.3068229]
[1728468246717,4.10197,2437.9,2437.5,0.8032]
[1728468246874,0.06008955,2437.8,2437.5,4.90574]
[1728468247914,4.99290955,2437.8,2437.3,7.93386]
[1728468251817,4.99290955,2437.8,2437.4,4.10267]
[1728468270463,0.89078955,2437.8,2437.5,4.10254]
[1728468273891,0.06008955,2437.8,2437.6,0.753]
[1728468274081,0.06008955,2437.8,2437.7,9.59967801]
[1728468274238,4.10068,2438.7,2437.7,9.59967801]
[1728468274239,0.8123,2438.7,2438.4,4.10104]
[1728468274439,0.42697714,2438.6,2438.4,4.10096]
[1728468274744,0.42697714,2438.6,2438.3,4.10119]
[1728468274745,0.04870645,2438.6,2438.3,4.10119]
[1728468274949,0.04870645,2438.6,2438.2,8.95557]
[1728468275165,0.04870645,2438.6,2438.3,4.18313467]
[1728468276281,0.04870645,2438.6,2438.4,4.10103]
[1728468276763,0.04870645,2438.6,2438.5,4.10088]
[1728468280061,0.04870645,2438.6,2438.5,5.00307864]
[1728468280490,0.7543,2439.0,2438.7,4.10038]
[1728468281000,0.7543,2439.0,2438.8,4.10032]
[1728468283088,0.04906966,2438.9,2438.8,4.10032]